fUSD/lending_fUSD_20250228
["ID","MTS","AMOUNT","RATE_DAILY","PERIOD"]
[354802249,1740707541916,-519.5759345,0.00058904,120]
[354802250,1740707541925,-1852.03,0.00058904,120]
[354802251,1740707541934,-500.0,0.00058904,120]
[354802252,1740707541943,-514.69,0.00058904,120]
[354802253,1740707541952,-500.0,0.00058904,120]
[354802254,1740707541961,-500.0,0.00058904,120]
[354802255,1740707541970,-500.0,0.00058904,120]
[354802256,1740707541979,-500.0,0.00058904,120]
[354802257,1740707541988,-500.0,0.00058904,120]
[354802258,1740707541998,-500.0,0.00058904,120]
[354802259,1740707542007,-507.13230789,0.00058904,120]
[354802260,1740707542016,-511.56,0.00058904,120]
[354802261,1740707542024,-500.0,0.00058904,120]
[354802262,1740707542034,-500.0,0.00058904,120]
[354802263,1740707542043,-623.01618852,0.00058904,120]
[354802264,1740707542052,-500.0,0.00058904,120]
[354802265,1740707542062,-500.0,0.00058904,120]
[354802266,1740707542071,-500.0,0.00058904,120]
[354802267,1740707542080,-500.0,0.00058904,120]
[354802268,1740707542090,-500.0,0.00058904,120]
[354802269,1740707542099,-500.0,0.00058904,120]
[354802270,1740707542109,-500.0,0.00058904,120]
[354802271,1740707542119,-500.0,0.00058904,120]
[354802272,1740707542129,-551.51,0.00058904,120]
[354802273,1740707542138,-1099.38,0.00058904,120]
[354802274,1740707542148,-500.0,0.00058904,120]
[354802275,1740707542158,-500.0,0.00058904,120]
[354802276,1740707542168,-1641.04,0.00058904,120]
[354802277,1740707542178,-500.0,0.00058904,120]
[354802278,1740707542187,-759.23,0.00058904,120]
[354802279,1740707542197,-500.0,0.00058904,120]
[354802280,1740707542207,-585.19,0.00058904,120]
[354802281,1740707542216,-500.0,0.00058904,120]
[354802282,1740707542226,-509.82,0.00058904,120]
[354802283,1740707542236,-157.77564296,0.00058904,120]
[354802284,1740707542246,-578.23,0.00058904,120]
[354802285,1740707542256,-530.22,0.00058904,120]
[354802286,1740707542266,-509.64,0.00058904,120]
[354802287,1740707542275,-500.0,0.00058904,120]
[354802288,1740707542285,-587.4,0.00058904,120]
[354802289,1740707542295,-500.0,0.00058904,120]
[354802290,1740707542307,-500.0,0.00058904,120]
[354802291,1740707542316,-500.0,0.00058904,120]
[354802292,1740707542326,-600.42,0.00058904,120]
[354802293,1740707542336,-500.0,0.00058904,120]
[354802294,1740707542346,-951.38,0.00058904,2]
[354802295,1740707542355,-630.94,0.00058904,120]
[354802296,1740707542366,-1478.07,0.00058904,120]
[354802297,1740707542375,-768.84,0.00058904,120]
[354802298,1740707542384,-594.92,0.00058904,120]
[354802299,1740707542393,-1119.62,0.00058904,120]
[354802300,1740707542403,-580.73,0.00058904,120]
[354802301,1740707542413,-517.91,0.00058904,120]
[354802302,1740707542422,-1543.06,0.00058904,120]
[354802303,1740707542431,-533.37,0.00058904,120]
[354802304,1740707542441,-1220.35,0.00058904,120]
[354802305,1740707542450,-744.65,0.00058904,120]
[354802306,1740707542459,-1028.04,0.00058904,120]
[354802307,1740707542468,-500.0,0.00058904,120]
[354802308,1740707542477,-500.0,0.00058904,120]
[354802309,1740707542487,-179.02767212,0.00058904,30]
[354802310,1740707542495,-1097.3,0.00058904,120]
[354802311,1740707542504,-949.11,0.00058904,120]
[354802312,1740707542514,-879.55,0.00058904,120]
[354802313,1740707542527,-500.0,0.00058904,120]
[354802314,1740707542536,-526.49,0.00058904,120]
[354802315,1740707542545,-828.91,0.00058904,120]
[354802316,1740707542760,-814.83,0.00058904,120]
[354802317,1740707542770,-517.4,0.00058904,120]
[354802318,1740707542779,-852.06,0.00058904,120]
[354802319,1740707542789,-500.0,0.00058904,120]
[354802320,1740707542798,-1009.91,0.00058904,120]
[354802321,1740707542807,-730.96,0.00058904,120]
[354802322,1740707542817,-500.0,0.00058904,120]
[354802323,1740707542826,-1151.75,0.00058904,120]
[354802324,1740707542835,-500.0,0.00058904,120]
[354802325,1740707542844,-500.0,0.00058904,120]
[354802326,1740707542853,-893.14,0.00058904,120]
[354802327,1740707542863,-885.88,0.00058904,120]
[354802328,1740707542871,-566.69,0.00058904,120]
[354802329,1740707542880,-500.0,0.00058904,120]
[354802330,1740707542889,-504.0,0.00058904,120]
[354802331,1740707543051,-710.67,0.00058904,120]
[354802332,1740707543062,-726.03,0.00058904,120]
[354802333,1740707543072,-1292.45,0.00058904,100]
[354802334,1740707543081,-715.56,0.00058904,120]
[354802335,1740707543091,-500.0,0.00058904,120]
[354802336,1740707543101,-500.0,0.00058904,120]
[354802337,1740707543110,-500.0,0.00058904,120]
[354802338,1740707543121,-516.93,0.00058904,120]
[354802339,1740707543130,-951.24,0.00058904,120]
[354802340,1740707543140,-741.74,0.00058904,120]
[354802341,1740707543150,-2076.3,0.00058904,120]
[354802342,1740707543160,-500.0,0.00058904,120]
[354802343,1740707543169,-500.0,0.00058904,120]
[354802344,1740707543179,-396.38463112,0.00058904,120]
[354802345,1740707543189,-608.51,0.00058904,120]
[354802346,1740707543199,-1051.75,0.00058904,120]
[354802347,1740707543208,-500.0,0.00058904,120]
[354802348,1740707543218,-1105.65,0.00058904,120]
[354802349,1740707543228,-935.9,0.00058904,120]
[354802350,1740707543238,-500.0,0.00058904,120]
[354802351,1740707543248,-1021.57,0.00058904,120]
[354802352,1740707543257,-678.63,0.00058904,120]
[354802353,1740707543267,-847.2,0.00058904,120]
[354802354,1740707543276,-500.0,0.00058904,120]
[354802355,1740707543286,-927.57,0.00058904,120]
[354802356,1740707543296,-500.0,0.00058904,120]
[354802357,1740707543307,-1273.87,0.00058904,120]
[354802358,1740707543316,-500.0,0.00058904,120]
[354802359,1740707543326,-500.0,0.00058904,120]
[354802360,1740707543336,-762.62,0.00058904,120]
[354802361,1740707543345,-840.01,0.00058904,120]
[354802362,1740707543354,-795.43,0.00058904,120]
[354802363,1740707543364,-500.0,0.00058904,120]
[354802364,1740707543373,-575.37,0.00058904,120]
[354802365,1740707543382,-500.0,0.00058904,120]
[354802366,1740707543392,-500.0,0.00058904,120]
[354802367,1740707543401,-372.71108285,0.00058904,120]
[354802368,1740707543411,-695.08,0.00058904,120]
[354802369,1740707543420,-1111.02,0.00058904,120]
[354802370,1740707543429,-919.96,0.00058904,120]
[354802371,1740707543439,-500.0,0.00058904,120]
[354802372,1740707543448,-612.37,0.00058904,120]
[354802373,1740707543457,-500.0,0.00058904,120]
[354802374,1740707543467,-639.59,0.00058904,120]
[354802375,1740707543475,-2029.62,0.00058904,120]
[354802376,1740707543484,-500.0,0.00058904,120]
[354802377,1740707543494,-790.67,0.00058904,120]
[354802378,1740707543503,-1308.82,0.00058904,120]
[354802379,1740707543511,-551.57,0.00058904,120]
[354802380,1740707543522,-714.61,0.00058904,120]
[354802381,1740707543532,-745.48,0.00058904,120]
[354802382,1740707543542,-646.72,0.00058904,120]
[354802383,1740707543551,-500.0,0.00058904,120]
[354802384,1740707543560,-604.6809303,0.00058904,120]
[354802385,1740707543570,-1510.89,0.00058904,120]
[354802386,1740707543579,-500.0,0.00058904,120]
[354802387,1740707543588,-1169.82,0.00058904,120]
[354802388,1740707543598,-500.0,0.00058904,120]
[354802389,1740707543607,-500.0,0.00058904,120]
[354802390,1740707543617,-2056.21,0.00058904,120]
[354802391,1740707543626,-500.0,0.00058904,120]
[354802392,1740707543635,-1119.09,0.00058904,120]
[354802393,1740707543644,-500.0,0.00058904,120]
[354802394,1740707543653,-532.93,0.00058904,120]
[354802395,1740707543662,-500.0,0.00058904,120]
[354802396,1740707543671,-500.0,0.00058904,120]
[354802397,1740707543680,-729.17,0.00058904,120]
[354802398,1740707543689,-845.3,0.00058904,120]
[354802399,1740707543699,-886.83,0.00058904,120]
[354802400,1740707543708,-650.9,0.00058904,120]
[354802401,1740707543717,-500.0,0.00058904,120]
[354802402,1740707543726,-971.67,0.00058904,120]
[354802403,1740707543735,-511.14,0.00058904,120]
[354802404,1740707543744,-49745.65937525,0.00058987,120]
[354802405,1740707543754,-1276.0,0.00058988,120]
[354802406,1740707543763,-1000000.0,0.00059,120]
[354802407,1740707543773,-1000000.0,0.00059,120]
[354802408,1740707543782,-489.966821,0.00059,60]
[354802409,1740707543791,-23144.27672328,0.00059,30]
[354802410,1740707543800,-570.7113219,0.0005909,2]
[354802411,1740707543810,-154.618068,0.00059178,120]
[354802412,1740707543819,-4105.716146,0.00059178,120]
[354802413,1740707543828,-1424.950955,0.00059178,120]
[354802414,1740707543837,-159.164146,0.00059178,120]
[354802415,1740707543846,-500.0,0.00059178,120]
[354802416,1740707543855,-2903.92700426,0.00059178,120]
[354802417,1740707543865,-500.0,0.00059178,120]
[354802418,1740707543875,-570.68,0.00059178,120]
[354802419,1740707543884,-509.69,0.00059178,120]
[354802420,1740707543893,-500.0,0.00059178,120]
[354802421,1740707543903,-828.19,0.00059178,120]
[354802422,1740707543912,-500.0,0.00059178,120]
[354802423,1740707543922,-500.0,0.00059178,120]
[354802424,1740707543931,-1852.03,0.00059178,120]
[354802425,1740707543940,-500.0,0.00059178,120]
[354802426,1740707543949,-514.69,0.00059178,120]
[354802427,1740707543958,-500.0,0.00059178,120]
[354802428,1740707543967,-500.0,0.00059178,120]
[354802429,1740707543976,-500.0,0.00059178,120]
[354802430,1740707543986,-500.0,0.00059178,120]
[354802431,1740707543995,-500.0,0.00059178,120]
[354802432,1740707544005,-500.0,0.00059178,120]
[354802433,1740707544014,-511.56,0.00059178,120]
[354802434,1740707544023,-500.0,0.00059178,120]
[354802435,1740707544032,-257.8398683,0.00059178,120]
[354802436,1740707544042,-500.0,0.00059178,120]
[354802437,1740707544051,-500.0,0.00059178,120]
[354802438,1740707544061,-560.8009623,0.00059178,120]
[354802439,1740707544071,-190.53219161,0.00059178,120]
[354802440,1740707544080,-470.5259984,0.00059178,120]
[354802441,1740707544090,-500.0,0.00059178,120]
[354802442,1740707544099,-500.0,0.00059178,120]
[354802443,1740707544109,-500.0,0.00059178,120]
[354802444,1740707544118,-551.51,0.00059178,120]
[354802445,1740707544127,-1099.38,0.00059178,120]
[354802446,1740707544137,-500.0,0.00059178,120]
[354802447,1740707544146,-395.26869693,0.00059178,120]
[354802448,1740707544155,-1641.04,0.00059178,120]
[354802449,1740707544165,-500.0,0.00059178,120]
[354802450,1740707544175,-759.23,0.00059178,120]
[354802451,1740707544184,-500.0,0.00059178,120]
[354802452,1740707544193,-585.19,0.00059178,120]
[354802453,1740707544203,-500.0,0.00059178,120]
[354802454,1740707544212,-509.82,0.00059178,120]
[354802455,1740707544222,-578.23,0.00059178,120]
[354802456,1740707544232,-530.22,0.00059178,120]
[354802457,1740707544241,-509.64,0.00059178,120]
[354802458,1740707544251,-500.0,0.00059178,120]
[354802459,1740707544260,-587.4,0.00059178,120]
[354802460,1740707544269,-500.0,0.00059178,120]
[354802461,1740707544279,-500.0,0.00059178,120]
[354802462,1740707544288,-500.0,0.00059178,120]
[354802463,1740707544298,-600.42,0.00059178,120]
[354802464,1740707544308,-500.0,0.00059178,120]
[354802465,1740707544317,-951.38,0.00059178,2]
[354802466,1740707544327,-630.94,0.00059178,120]
[354802467,1740707544337,-1478.07,0.00059178,120]
[354802468,1740707544346,-594.92,0.00059178,120]
[354802469,1740707544354,-768.84,0.00059178,120]
[354802470,1740707544364,-1119.62,0.00059178,120]
[354802471,1740707544373,-580.73,0.00059178,120]
[354802472,1740707544383,-517.91,0.00059178,120]
[354802473,1740707544392,-1543.06,0.00059178,120]
[354802474,1740707544402,-533.37,0.00059178,120]
[354802475,1740707544411,-1220.35,0.00059178,120]
[354802476,1740707544420,-744.65,0.00059178,120]
[354802477,1740707544429,-1028.04,0.00059178,120]
[354802478,1740707544438,-500.0,0.00059178,120]
[354802479,1740707544447,-500.0,0.00059178,120]
[354802480,1740707544456,-1097.3,0.00059178,120]
[354802481,1740707544466,-949.11,0.00059178,120]
[354802482,1740707544475,-879.55,0.00059178,120]
[354802483,1740707544484,-500.0,0.00059178,120]
[354802484,1740707544493,-526.49,0.00059178,120]
[354802485,1740707544502,-828.91,0.00059178,120]
[354802486,1740707544512,-814.83,0.00059178,120]
[354802487,1740707544522,-517.4,0.00059178,120]
[354802488,1740707544531,-852.06,0.00059178,120]
[354802489,1740707544540,-500.0,0.00059178,120]
[354802490,1740707544550,-1009.91,0.00059178,120]
[354802491,1740707544562,-730.96,0.00059178,120]
[354802492,1740707544571,-500.0,0.00059178,120]
[354802493,1740707544580,-1151.75,0.00059178,120]
[354802494,1740707544590,-500.0,0.00059178,120]
[354802495,1740707544602,-500.0,0.00059178,120]
[354802496,1740707544612,-885.88,0.00059178,120]
[354802497,1740707544621,-893.14,0.00059178,120]
[354802498,1740707544631,-566.69,0.00059178,120]
[354802499,1740707544640,-500.0,0.00059178,120]
[354802500,1740707544650,-504.0,0.00059178,120]
[354802501,1740707544659,-710.67,0.00059178,120]
[354802502,1740707544669,-726.03,0.00059178,120]
[354802503,1740707544678,-1292.45,0.00059178,100]
[354802504,1740707544688,-715.56,0.00059178,120]
[354802505,1740707544697,-431.39921563,0.00059178,120]
[354802506,1740707544707,-500.0,0.00059178,120]
[354802507,1740707544716,-500.0,0.00059178,120]
[354802508,1740707544725,-516.93,0.00059178,120]
[354802509,1740707544734,-951.24,0.00059178,120]
[354802510,1740707544743,-741.74,0.00059178,120]
[354802511,1740707544752,-2076.3,0.00059178,120]
[354802512,1740707544761,-455.71272214,0.00059178,120]
[354802513,1740707544770,-500.0,0.00059178,120]
[354802514,1740707544779,-608.51,0.00059178,120]
[354802515,1740707544788,-1051.75,0.00059178,120]
[354802516,1740707544797,-500.0,0.00059178,120]
[354802517,1740707544808,-1105.65,0.00059178,120]
[354802518,1740707544817,-935.9,0.00059178,120]
[354802519,1740707544826,-500.0,0.00059178,120]
[354802520,1740707544835,-1021.57,0.00059178,120]
[354802521,1740707544844,-678.63,0.00059178,120]
[354802522,1740707544853,-847.2,0.00059178,120]
[354802523,1740707544863,-500.0,0.00059178,120]
[354802524,1740707544871,-927.57,0.00059178,120]
[354802525,1740707544880,-500.0,0.00059178,120]
[354802526,1740707544889,-1273.87,0.00059178,120]
[354802527,1740707544898,-500.0,0.00059178,120]
[354802528,1740707544907,-500.0,0.00059178,120]
[354802529,1740707544916,-762.62,0.00059178,120]
[354802530,1740707544925,-840.01,0.00059178,120]
[354802531,1740707544938,-795.43,0.00059178,120]
[354802532,1740707544947,-500.0,0.00059178,120]
[354802533,1740707544957,-575.37,0.00059178,120]
[354802534,1740707544966,-500.0,0.00059178,120]
[354802535,1740707544975,-500.0,0.00059178,120]
[354802536,1740707544984,-695.08,0.00059178,120]
[354802537,1740707544994,-1111.02,0.00059178,120]
[354802538,1740707545003,-919.96,0.00059178,120]
[354802539,1740707545013,-500.0,0.00059178,120]
[354802540,1740707545022,-612.37,0.00059178,120]
[354802541,1740707545033,-639.59,0.00059178,120]
[354802542,1740707545042,-500.0,0.00059178,120]
[354802543,1740707545052,-2029.62,0.00059178,120]
[354802544,1740707545063,-500.0,0.00059178,120]
[354802545,1740707545072,-790.67,0.00059178,120]
[354802546,1740707545081,-1308.82,0.00059178,120]
[354802547,1740707545091,-551.57,0.00059178,120]
[354802548,1740707545100,-714.61,0.00059178,120]
[354802549,1740707545110,-745.48,0.00059178,120]
[354802550,1740707545119,-646.72,0.00059178,120]
[354802551,1740707545129,-493.79792388,0.00059178,120]
[354802552,1740707545138,-1510.89,0.00059178,120]
[354802553,1740707545147,-500.0,0.00059178,120]
[354802554,1740707545156,-1169.82,0.00059178,120]
[354802555,1740707545165,-377.09561351,0.00059178,120]
[354802556,1740707545174,-500.0,0.00059178,120]
[354802557,1740707545184,-2056.21,0.00059178,120]
[354802558,1740707545194,-500.0,0.00059178,120]
[354802559,1740707545203,-1119.09,0.00059178,120]
[354802560,1740707545214,-500.0,0.00059178,120]
[354802561,1740707545225,-500.0,0.00059178,120]
[354802562,1740707545235,-532.93,0.00059178,120]
[354802563,1740707545244,-500.0,0.00059178,120]
[354802564,1740707545254,-729.17,0.00059178,120]
[354802565,1740707545263,-845.3,0.00059178,120]
[354802566,1740707545272,-886.83,0.00059178,120]
[354802567,1740707545282,-650.9,0.00059178,120]
[354802568,1740707545291,-500.0,0.00059178,120]
[354802569,1740707545300,-971.67,0.00059178,120]
[354802570,1740707545311,-511.14,0.00059178,120]
[354802571,1740707545321,-225.49779845,0.0005928,30]
[354802572,1740707545330,-206.0,0.000593,30]
[354802573,1740707545340,-558.65,0.000593,60]
[354802574,1740707545350,-558.65,0.000593,60]
[354802575,1740707545359,-558.65,0.000593,60]
[354802576,1740707545369,-558.65,0.000593,60]
[354802577,1740707545379,-558.65,0.000593,60]
[354802578,1740707545389,-558.65,0.000593,60]
[354802579,1740707545398,-558.65,0.000593,60]
[354802580,1740707545408,-558.65,0.000593,60]
[354802581,1740707545417,-558.65,0.000593,60]
[354802582,1740707545427,-558.65,0.000593,60]
[354802583,1740707545437,-558.65,0.000593,60]
[354802584,1740707545446,-558.65,0.000593,60]
[354802585,1740707545456,-558.65,0.000593,60]
[354802586,1740707545465,-558.65,0.000593,60]
[354802587,1740707545475,-558.65,0.000593,60]
[354802588,1740707545484,-558.65,0.000593,60]
[354802589,1740707545493,-558.65,0.000593,60]
[354802590,1740707545503,-558.65,0.000593,60]
[354802591,1740707545513,-558.65,0.000593,60]
[354802592,1740707545525,-558.65,0.000593,60]
[354802593,1740707545535,-558.65,0.000593,60]
[354802594,1740707545544,-558.65,0.000593,60]
[354802595,1740707545554,-558.65,0.000593,60]
[354802596,1740707545564,-558.65,0.000593,60]
[354802597,1740707545574,-1300.0,0.00059342,120]
[354802598,1740707545584,-1400.0,0.00059342,120]
[354802599,1740707545594,-154.618068,0.00059452,120]
[354802600,1740707545604,-4105.716146,0.00059452,120]
[354802601,1740707545614,-1424.950955,0.00059452,120]
[354802602,1740707545623,-500.0,0.00059452,120]
[354802603,1740707545632,-285.29832008,0.00059452,120]
[354802604,1740707545642,-570.68,0.00059452,120]
[354802605,1740707545651,-509.69,0.00059452,120]
[354802606,1740707545661,-620.21387945,0.00059452,120]
[354802607,1740707545671,-828.19,0.00059452,120]
[354802608,1740707545681,-500.0,0.00059452,120]
[354802609,1740707545691,-500.0,0.00059452,120]
[354802610,1740707545700,-1852.03,0.00059452,120]
[354802611,1740707545709,-500.0,0.00059452,120]
[354802612,1740707545719,-514.69,0.00059452,120]
[354802613,1740707545728,-500.0,0.00059452,120]
[354802614,1740707545737,-500.0,0.00059452,120]
[354802615,1740707545746,-500.0,0.00059452,120]
[354802616,1740707545756,-169.03774988,0.00059452,120]
[354802617,1740707545766,-500.0,0.00059452,120]
[354802618,1740707545775,-500.0,0.00059452,120]
[354802619,1740707545784,-511.56,0.00059452,120]
[354802620,1740707545794,-500.0,0.00059452,120]
[354802621,1740707545803,-500.0,0.00059452,120]
[354802622,1740707545815,-500.0,0.00059452,120]
[354802623,1740707545824,-500.0,0.00059452,120]
[354802624,1740707545834,-500.0,0.00059452,120]
[354802625,1740707545844,-500.0,0.00059452,120]
[354802626,1740707545853,-551.51,0.00059452,120]
[354802627,1740707545862,-1099.38,0.00059452,120]
[354802628,1740707545872,-500.0,0.00059452,120]
[354802629,1740707545882,-1641.04,0.00059452,120]
[354802630,1740707545891,-500.0,0.00059452,120]
[354802631,1740707545901,-759.23,0.00059452,120]
[354802632,1740707545910,-500.0,0.00059452,120]
[354802633,1740707545920,-585.19,0.00059452,120]
[354802634,1740707545930,-500.0,0.00059452,120]
[354802635,1740707545939,-509.82,0.00059452,120]
[354802636,1740707545949,-578.23,0.00059452,120]
[354802637,1740707545958,-530.22,0.00059452,120]
[354802638,1740707545968,-509.64,0.00059452,120]
[354802639,1740707545978,-227.28751804,0.00059452,120]
[354802640,1740707545987,-587.4,0.00059452,120]
[354802641,1740707545998,-500.0,0.00059452,120]
[354802642,1740707546009,-500.0,0.00059452,120]
[354802643,1740707546018,-500.0,0.00059452,120]
[354802644,1740707546027,-600.42,0.00059452,120]
[354802645,1740707546038,-163.38505636,0.00059452,120]
[354802646,1740707546047,-951.38,0.00059452,2]
[354802647,1740707546057,-630.94,0.00059452,120]
[354802648,1740707546068,-1478.07,0.00059452,120]
[354802649,1740707546077,-594.92,0.00059452,120]
[354802650,1740707546086,-768.84,0.00059452,120]
[354802651,1740707546096,-1119.62,0.00059452,120]
[354802652,1740707546105,-580.73,0.00059452,120]
[354802653,1740707546115,-517.91,0.00059452,120]
[354802654,1740707546125,-1543.06,0.00059452,120]
[354802655,1740707546135,-533.37,0.00059452,120]
[354802656,1740707546144,-1220.35,0.00059452,120]
[354802657,1740707546153,-744.65,0.00059452,120]
[354802658,1740707546163,-1028.04,0.00059452,120]
[354802659,1740707546172,-423.79632313,0.00059452,120]
[354802660,1740707546182,-500.0,0.00059452,120]
[354802661,1740707546192,-1097.3,0.00059452,120]
[354802662,1740707546202,-949.11,0.00059452,120]
[354802663,1740707546212,-879.55,0.00059452,120]
[354802664,1740707546222,-500.0,0.00059452,120]
[354802665,1740707546232,-526.49,0.00059452,120]
[354802666,1740707546242,-828.91,0.00059452,120]
[354802667,1740707546252,-814.83,0.00059452,120]
[354802668,1740707546262,-517.4,0.00059452,120]
[354802669,1740707546272,-852.06,0.00059452,120]
[354802670,1740707546282,-500.0,0.00059452,120]
[354802671,1740707546294,-1009.91,0.00059452,120]
[354802672,1740707546305,-730.96,0.00059452,120]
[354802673,1740707546322,-500.0,0.00059452,120]
[354802674,1740707546333,-1151.75,0.00059452,120]
[354802675,1740707546344,-500.0,0.00059452,120]
[354802676,1740707546355,-500.0,0.00059452,120]
[354802677,1740707546365,-885.88,0.00059452,120]
[354802678,1740707546375,-893.14,0.00059452,120]
[354802679,1740707546385,-566.69,0.00059452,120]
[354802680,1740707546395,-500.0,0.00059452,120]
[354802681,1740707546405,-504.0,0.00059452,120]
[354802682,1740707546415,-710.67,0.00059452,120]
[354802683,1740707546425,-726.03,0.00059452,120]
[354802684,1740707546435,-1292.45,0.00059452,100]
[354802685,1740707546445,-715.56,0.00059452,120]
[354802686,1740707546455,-500.0,0.00059452,120]
[354802687,1740707546464,-500.0,0.00059452,120]
[354802688,1740707546474,-516.93,0.00059452,120]
[354802689,1740707546485,-951.24,0.00059452,120]
[354802690,1740707546494,-741.74,0.00059452,120]
[354802691,1740707546504,-2076.3,0.00059452,120]
[354802692,1740707546517,-500.0,0.00059452,120]
[354802693,1740707546527,-608.51,0.00059452,120]
[354802694,1740707546536,-1051.75,0.00059452,120]
[354802695,1740707546545,-500.0,0.00059452,120]
[354802696,1740707546560,-1105.65,0.00059452,120]
[354802697,1740707546569,-935.9,0.00059452,120]
[354802698,1740707546579,-500.0,0.00059452,120]
[354802699,1740707546589,-1021.57,0.00059452,120]
[354802700,1740707546600,-678.63,0.00059452,120]
[354802701,1740707546609,-847.2,0.00059452,120]
[354802702,1740707546619,-500.0,0.00059452,120]
[354802703,1740707546630,-927.57,0.00059452,120]
[354802704,1740707546640,-500.0,0.00059452,120]
[354802705,1740707546651,-1273.87,0.00059452,120]
[354802706,1740707546660,-500.0,0.00059452,120]
[354802707,1740707546670,-189.91,0.00059452,120]
[354802708,1740707546679,-762.62,0.00059452,120]
[354802709,1740707546689,-840.01,0.00059452,120]
[354802710,1740707546700,-795.43,0.00059452,120]
[354802711,1740707546710,-376.19319631,0.00059452,120]
[354802712,1740707546720,-575.37,0.00059452,120]
[354802713,1740707546730,-612.33742201,0.00059452,120]
[354802714,1740707546741,-500.0,0.00059452,120]
[354802715,1740707546751,-695.08,0.00059452,120]
[354802716,1740707546761,-1111.02,0.00059452,120]
[354802717,1740707546771,-919.96,0.00059452,120]
[354802718,1740707546782,-478.95106983,0.00059452,120]
[354802719,1740707546792,-612.37,0.00059452,120]
[354802720,1740707546802,-500.0,0.00059452,120]
[354802721,1740707546815,-639.59,0.00059452,120]
[354802722,1740707546824,-2029.62,0.00059452,120]
[354802723,1740707546834,-790.67,0.00059452,120]
[354802724,1740707546843,-500.0,0.00059452,120]
[354802725,1740707546853,-1308.82,0.00059452,120]
[354802726,1740707546862,-551.57,0.00059452,120]
[354802727,1740707546871,-714.61,0.00059452,120]
[354802728,1740707546880,-745.48,0.00059452,120]
[354802729,1740707546889,-646.72,0.00059452,120]
[354802730,1740707546898,-1510.89,0.00059452,120]
[354802731,1740707546907,-500.0,0.00059452,120]
[354802732,1740707546917,-1169.82,0.00059452,120]
[354802733,1740707546926,-336.63931511,0.00059452,120]
[354802734,1740707546935,-2056.21,0.00059452,120]
[354802735,1740707546945,-500.0,0.00059452,120]
[354802736,1740707546954,-1119.09,0.00059452,120]
[354802737,1740707546963,-500.0,0.00059452,120]
[354802738,1740707546972,-500.0,0.00059452,120]
[354802739,1740707546981,-532.93,0.00059452,120]
[354802740,1740707546990,-500.0,0.00059452,120]
[354802741,1740707547000,-729.17,0.00059452,120]
[354802742,1740707547010,-845.3,0.00059452,120]
[354802743,1740707547019,-886.83,0.00059452,120]
[354802744,1740707547219,-650.9,0.00059452,120]
[354802745,1740707547230,-500.0,0.00059452,120]
[354802746,1740707547240,-971.67,0.00059452,120]
[354802747,1740707547249,-511.14,0.00059452,120]
[354802748,1740707547259,-1000000.0,0.000595,120]